fUST/lending_fUST_20240216
["ID","MTS","AMOUNT","RATE_DAILY","PERIOD"]
[314148164,1708024239436,-1836.31004484,0.00024991,2]
[314148166,1708024239445,-1836.31004484,0.00024991,2]
[314148168,1708024239453,-634.18700132,0.00024991,2]
[314148169,1708024239463,-1836.31004484,0.00024991,2]
[314148171,1708024239472,-1836.31004484,0.00024991,2]
[314148173,1708024239483,-1836.31004484,0.00024991,2]
[314148175,1708024239492,-500.0,0.00024991,2]
[314148177,1708024239501,-1836.31004484,0.00024991,2]
[314148179,1708024239510,-1836.31004484,0.00024991,2]
[314148181,1708024239519,-1836.31004484,0.00024991,2]
[314148183,1708024239528,-1836.31004484,0.00024991,2]
[314148185,1708024239540,-1836.31004484,0.00024991,2]
[314148187,1708024239550,-1836.31004484,0.00024991,2]
[314148189,1708024239559,-1836.31004484,0.00024991,2]
[314148191,1708024239568,-1836.31004484,0.00024991,2]
[314148193,1708024239578,-1836.31004484,0.00024991,2]
[314148195,1708024239587,-1836.31004484,0.00024991,2]
[314148197,1708024239596,-500.0,0.00024999,2]
[314148199,1708024239607,-500.0,0.00024999,2]
[314148201,1708024239616,-500.0,0.00024999,2]
[314148203,1708024239626,-500.0,0.00024999,2]
[314148205,1708024239636,-197.33585836,0.00024999,2]
[314148207,1708024239646,-645.68833248,0.00024999,2]
[314148209,1708024239656,-499.96128475,0.00024999,2]
[314148211,1708024239665,-500.0,0.00024999,2]
[314148213,1708024239675,-500.0,0.00024999,2]
[314148215,1708024239684,-500.0,0.00024999,2]
[314148217,1708024239693,-500.0,0.00024999,2]
[314148219,1708024239703,-500.0,0.00024999,2]
[314148221,1708024239713,-500.0,0.00024999,2]
[314148223,1708024239722,-500.0,0.00024999,2]
[314148225,1708024239731,-500.0,0.00024999,2]
[314148227,1708024239740,-500.0,0.00024999,2]
[314148229,1708024239750,-500.0,0.00024999,2]
[314148231,1708024239761,-500.0,0.00024999,2]
[314148233,1708024239771,-500.0,0.00024999,2]
[314148235,1708024239781,-500.0,0.00024999,2]
[314148237,1708024239792,-500.0,0.00024999,2]
[314148239,1708024239802,-508.52610876,0.00024999,2]
[314148241,1708024239811,-500.0,0.00024999,2]
[314148243,1708024239820,-500.0,0.00024999,2]
[314148245,1708024239831,-544.08017183,0.00024999,2]
[314148247,1708024239840,-500.0,0.00024999,2]
[314148249,1708024239851,-167.05623629,0.00024999,2]
[314148251,1708024239860,-600.0,0.00024999,2]
[314148253,1708024239870,-500.0,0.00024999,2]
[314148261,1708024239946,-551.25507071,0.00024999,2]
[314148263,1708024239957,-500.0,0.00024999,2]
[314148265,1708024239966,-500.0,0.00024999,2]
[314148267,1708024239976,-500.0,0.00024999,2]
[314148269,1708024239985,-500.0,0.00024999,2]
[314148271,1708024239995,-500.0,0.00024999,2]
[314148273,1708024240004,-1424.20771006,0.00025,3]
[314148275,1708024240014,-742127.23991092,0.00025,2]
[314148748,1708024244889,-3488.3930513,0.0002499,3]
[314148755,1708024244947,-308.93197938,0.0002499,3]
[314148943,1708024246745,-0.42337268,0.0002499,3]
[314151720,1708024480654,-5018.18079626,0.000229,2]
[314151721,1708024480683,-1359.570151,0.00024013,2]
[314151722,1708024480714,-167.036589,0.00024658,2]
[314151723,1708024480743,-1647.4010854,0.00024887,2]
[314151724,1708024480771,-190.20884904,0.00024891,2]
[314151725,1708024480799,-190.20884902,0.00024923,2]
[314151726,1708024480826,-190.20884902,0.00024955,2]
[314151727,1708024480857,-665.18483126,0.00024989,3]
[314151785,1708025431883,-350.0,0.00022,2]
[314151788,1708025431895,-1825.56140657,0.00022613,2]
[314151790,1708025431996,-18662.60703693,0.00022613,2]
[314151791,1708025432006,-3345.45386417,0.000229,2]
[314151792,1708025432015,-350.0,0.00023,2]
[314151793,1708025432025,-250.0,0.00023019,2]
[314151794,1708025432035,-2389.531005,0.00023207,2]
[314151795,1708025432045,-24900.0,0.00023256,2]
[314151796,1708025432055,-819.30217481,0.00023463,2]
[314151798,1708025432065,-169.080987,0.00023563,2]
[314151800,1708025432075,-169.1333558,0.0002363,2]
[314151802,1708025432085,-200.0,0.0002372,7]
[314151804,1708025432095,-200.0,0.0002372,7]
[314151806,1708025432108,-350.0,0.00024,2]
[314151808,1708025432119,-400.37155416,0.00024658,2]
[314151810,1708025432129,-167.036589,0.00024658,2]
[314151812,1708025432139,-456.5012377,0.00024899,2]
[314151814,1708025432148,-456.50123766,0.00024899,2]
[314151816,1708025432158,-456.50123766,0.000249,2]
[314151818,1708025432167,-456.50123766,0.000249,2]
[314151820,1708025432177,-151.0,0.000249,2]
[314151823,1708025432188,-456.50123766,0.000249,2]
[314151825,1708025432197,-3328.46218944,0.000249,2]
[314151827,1708025432207,-250.0,0.00024998,2]
[314151828,1708025432216,-450.0,0.00024999,2]
[314151830,1708025432226,-465.37652121,0.00024999,2]
[314151832,1708025432236,-230.11687089,0.00024999,2]
[314151835,1708025432245,-302.55783263,0.00024999,2]
[314151836,1708025432255,-600.0,0.00024999,2]
[314151839,1708025432265,-508.22405155,0.00024999,2]
[314151841,1708025432274,-300.0,0.00024999,2]
[314151843,1708025432284,-500.0,0.00024999,2]
[314151844,1708025432293,-250.0,0.00024999,2]
[314151847,1708025432303,-450.0,0.00024999,2]
[314151849,1708025432312,-368.37442533,0.00024999,2]
[314151851,1708025432321,-461.98217731,0.00024999,2]
[314151852,1708025432330,-1413.95873453,0.00024999,2]
[314151855,1708025432340,-469.59646068,0.00024999,2]
[314151857,1708025432349,-500.0,0.00024999,2]
[314151858,1708025432358,-1413.95873453,0.00024999,2]
[314151860,1708025432368,-500.0,0.00024999,2]
[314151863,1708025432378,-1413.95873453,0.00024999,2]
[314151865,1708025432388,-500.0,0.00024999,2]
[314151867,1708025432397,-500.0,0.00024999,2]
[314151869,1708025432406,-1413.95873453,0.00024999,2]
[314151871,1708025432415,-500.0,0.00024999,2]
[314151873,1708025432424,-1413.95873453,0.00024999,2]
[314151875,1708025432433,-500.0,0.00024999,2]
[314151876,1708025432442,-1413.95873453,0.00024999,2]
[314151879,1708025432452,-1413.95873453,0.00024999,2]
[314151881,1708025432461,-500.0,0.00024999,2]
[314151883,1708025432470,-218.52139546,0.00024999,2]
[314152041,1708025437924,-18280.8498748,0.00022552,2]
[314152043,1708025437934,-11630.3,0.00024989,3]
[314152045,1708025437943,-221.81971649,0.00024998,2]
[314152047,1708025437953,-500.0,0.00024998,2]
[314152049,1708025437963,-1830.07466391,0.00024998,2]
[314152051,1708025437972,-634.18700132,0.00024998,2]
[314152053,1708025437981,-500.0,0.00024998,2]
[314152055,1708025437991,-1830.07466391,0.00024998,2]
[314152057,1708025438000,-323.94695713,0.00024998,2]
[314152059,1708025438009,-1830.07466391,0.00024998,2]
[314152061,1708025438018,-1830.07466391,0.00024998,2]
[314152063,1708025438027,-500.0,0.00024998,2]
[314152065,1708025438036,-873.20957418,0.00024998,2]
[314152067,1708025438048,-956.86508973,0.00024998,2]
[314152069,1708025438057,-500.0,0.00024998,2]
[314152071,1708025438067,-1830.07466391,0.00024998,2]
[314152073,1708025438077,-1830.07466391,0.00024998,2]
[314152075,1708025438086,-500.0,0.00024998,2]
[314152077,1708025438096,-500.0,0.00024998,2]
[314152079,1708025438107,-1830.07466391,0.00024998,2]
[314152081,1708025438118,-1830.07466391,0.00024998,2]
[314152083,1708025438127,-1830.07466391,0.00024998,2]
[314152085,1708025438136,-1830.07466391,0.00024998,2]
[314152087,1708025438145,-1830.07466391,0.00024998,2]
[314152089,1708025438155,-1830.07466391,0.00024998,2]
[314152090,1708025438164,-1830.07466391,0.00024998,2]
[314152092,1708025438173,-1830.07466391,0.00024998,2]
[314152094,1708025438182,-1830.07466391,0.00024998,2]
[314152096,1708025438193,-1830.07466391,0.00024998,2]
[314152098,1708025438201,-1457.23894334,0.00024998,2]
[314152100,1708025438214,-372.83572057,0.00024998,2]
[314152102,1708025438223,-1830.07466391,0.00024998,2]
[314152104,1708025438232,-1830.07466391,0.00024998,2]
[314152106,1708025438240,-1830.07466391,0.00024998,2]
[314152108,1708025438249,-1830.07466391,0.00024998,2]
[314152110,1708025438259,-1830.07466391,0.00024998,2]
[314152112,1708025438267,-1830.07466391,0.00024998,2]
[314152114,1708025438276,-1830.07466391,0.00024998,2]
[314152116,1708025438285,-1830.07466391,0.00024998,2]
[314152118,1708025438294,-1830.07466391,0.00024998,2]
[314152120,1708025438304,-1830.07466391,0.00024998,2]
[314152122,1708025438313,-1830.07466391,0.00024998,2]
[314152124,1708025438322,-1830.07466391,0.00024998,2]
[314152126,1708025438330,-1830.07466391,0.00024998,2]
[314152128,1708025438340,-1830.07466391,0.00024998,2]
[314152130,1708025438349,-1830.07466391,0.00024998,2]
[314152132,1708025438359,-1830.07466391,0.00024998,2]
[314152133,1708025438367,-1830.07466391,0.00024998,2]
[314152136,1708025438377,-1830.07466391,0.00024998,2]
[314152137,1708025438386,-1830.07466391,0.00024998,2]
[314152139,1708025438395,-1830.07466391,0.00024998,2]
[314152141,1708025438404,-1830.07466391,0.00024998,2]
[314152143,1708025438414,-1830.07466391,0.00024998,2]
[314152145,1708025438423,-1830.07466391,0.00024998,2]
[314152147,1708025438432,-1830.07466391,0.00024998,2]
[314152149,1708025438440,-1830.07466391,0.00024998,2]
[314152151,1708025438449,-1830.07466391,0.00024998,2]
[314152153,1708025438458,-1830.07466391,0.00024998,2]
[314152155,1708025438467,-1830.07466391,0.00024998,2]
[314152157,1708025438476,-1830.07466391,0.00024998,2]
[314152158,1708025438485,-1830.07466391,0.00024998,2]
[314152160,1708025438495,-1830.07466391,0.00024998,2]
[314152162,1708025438503,-1830.07466391,0.00024998,2]
[314152164,1708025438512,-1830.07466391,0.00024998,2]
[314152166,1708025438521,-1830.07466391,0.00024998,2]
[314152168,1708025438531,-193.70649974,0.00024999,2]
[314152170,1708025438540,-197.33585836,0.00024999,2]
[314152172,1708025438549,-300.0,0.00024999,2]
[314152174,1708025438557,-1424.20771006,0.00025,3]
[314152176,1708025438566,-840764.58465993,0.00025,2]
[314152286,1708026538299,1006.10575194,0.00033,120]
[314152295,1708026568011,156.00681896,0.00017996,2]
[314152430,1708026634961,-181.77208135,0.00022802,2]
[314152433,1708026634970,-261.40537262,0.00022802,2]
[314152435,1708026634980,-1925.89688542,0.00022802,2]
[314152437,1708026634990,-6432.30343642,0.00022803,2]
[314152438,1708026634999,-3022.89749339,0.00022803,2]
[314152441,1708026635008,-24900.0,0.00022804,2]
[314152443,1708026635018,-2799.3715511,0.000229,2]
[314152444,1708026635028,-586.0552272,0.0002322,2]
[314152447,1708026635038,-19945.86988244,0.00023502,2]
[314152449,1708026635047,-1694.856044,0.00023655,2]
[314152451,1708026635057,-169.725628,0.00023698,2]
[314152453,1708026635067,-5683.05,0.00023734,3]
[314152455,1708026635076,-11476.3336076,0.00023764,2]
[314152457,1708026635086,-200.0,0.00023973,7]
[314152459,1708026635096,-200.0,0.00023973,7]
[314152461,1708026635106,-15340.98621148,0.00023994,2]
[314152463,1708026635115,-155.07753877,0.00023995,2]
[314152465,1708026635124,-202.49005339,0.00023995,2]
[314152467,1708026635136,-276.14756844,0.00023995,2]
[314152469,1708026635145,-155.07753877,0.00023995,2]
[314152471,1708026635154,-155.6040246,0.00023995,2]
[314152473,1708026635163,-2058.64722759,0.00023995,2]
[314152475,1708026635173,-209.66557472,0.00023995,2]
[314152477,1708026635182,-641.30241739,0.00023995,2]
[314152479,1708026635191,-1564.85553817,0.00023995,2]
[314152481,1708026635200,-300.59285172,0.00023995,2]
[314152483,1708026635209,-179.49439827,0.00023995,2]
[314152484,1708026635219,-1823.33764125,0.00023995,2]
[314152485,1708026635228,-155.07753877,0.00023995,2]
[314152486,1708026635237,-49361.08647474,0.00023996,2]
[314152504,1708026638088,-640.30302664,0.00023996,2]
[314152515,1708026638176,-2623.47664505,0.00023996,2]
[314152517,1708026638186,-155.07753877,0.00023996,2]
[314152519,1708026638195,-4694.16326576,0.00023996,2]
[314152521,1708026638204,-201.6805817,0.00023996,2]
[314152523,1708026638213,-578.0616897,0.00023997,2]
[314152525,1708026638223,-482.17641354,0.00023997,2]
[314152527,1708026638232,-262.04067347,0.00023997,7]
[314152529,1708026638241,-155.07753877,0.00023997,2]
[314152531,1708026638251,-155.07753877,0.00023997,2]
[314152533,1708026638260,-797.57084028,0.00023997,2]
[314152535,1708026638270,-258.17561775,0.00023997,2]
[314152537,1708026638280,-155.2452716,0.00023997,2]
[314152539,1708026638289,-155.07753877,0.00023997,2]
[314152541,1708026638299,-155.07753877,0.00023997,2]
[314152543,1708026638308,-155.07753877,0.00023997,2]
[314152545,1708026638317,-155.07753877,0.00023997,2]
[314152547,1708026638326,-538.01639501,0.00023997,2]
[314152549,1708026638335,-215.01308397,0.00023997,2]
[314152551,1708026638344,-1380.09622817,0.00023997,2]
[314152553,1708026638353,-823.9731989,0.00023997,2]
[314152555,1708026638362,-155.62121504,0.00023997,2]
[314152557,1708026638371,-155.07753877,0.00023997,2]
[314152559,1708026638380,-524.00511901,0.00023997,2]
[314152560,1708026638389,-661.37921054,0.00023997,2]
[314152563,1708026638399,-1384.47018573,0.00023997,2]
[314152564,1708026638411,-5541.10818919,0.00023997,2]
[314152567,1708026638420,-591.698237,0.00023997,2]
[314152569,1708026638429,-155.07753877,0.00023997,2]
[314152571,1708026638440,-446.73995616,0.00023997,2]
[314152572,1708026638451,-155.07753877,0.00023998,2]
[314152575,1708026638460,-222.18186218,0.00023998,2]
[314152577,1708026638469,-155.07753877,0.00023998,2]
[314152579,1708026638479,-1588.76554134,0.00023998,2]
[314152581,1708026638490,-250.0,0.00023998,2]
[314152583,1708026638499,-313.77188413,0.00023998,2]
[314152584,1708026638508,-1504.38958161,0.00023998,2]
[314152586,1708026638517,-1504.38958161,0.00023998,2]
[314152588,1708026638526,-1504.38958161,0.00023998,2]
[314152590,1708026638535,-1504.38958161,0.00023998,2]
[314152592,1708026638545,-1504.38958161,0.00023998,2]
[314152594,1708026638555,-1504.38958161,0.00023998,2]
[314152596,1708026638564,-1504.38958161,0.00023998,2]
[314152599,1708026638574,-1504.38958161,0.00023998,2]
[314152601,1708026638583,-1504.38958161,0.00023998,2]
[314152602,1708026638592,-1504.38958161,0.00023998,2]
[314152605,1708026638602,-1504.38958161,0.00023998,2]
[314152607,1708026638611,-1504.38958161,0.00023998,2]
[314152609,1708026638620,-1504.38958161,0.00023998,2]
[314152611,1708026638629,-1504.38958161,0.00023998,2]
[314152613,1708026638641,-1504.38958161,0.00023998,2]
[314152615,1708026638650,-1504.38958161,0.00023998,2]
[314152617,1708026638661,-1504.38958161,0.00023998,2]
[314152618,1708026638671,-1504.38958161,0.00023998,2]
[314152620,1708026638680,-1504.38958161,0.00023998,2]
[314152622,1708026638689,-1504.38958161,0.00023998,2]
[314152625,1708026638699,-1504.38958161,0.00023998,2]
[314152627,1708026638708,-1504.38958161,0.00023998,2]
[314152629,1708026638717,-1504.38958161,0.00023998,2]
[314152630,1708026638728,-1504.38958161,0.00023998,2]
[314152632,1708026638737,-1504.38958161,0.00023998,2]
[314152634,1708026638746,-1504.38958161,0.00023998,2]
[314152637,1708026638756,-1504.38958161,0.00023998,2]
[314152639,1708026638765,-1504.38958161,0.00023998,2]
[314152641,1708026638774,-1504.38958161,0.00023998,2]
[314152642,1708026638783,-1504.38958161,0.00023998,2]
[314152644,1708026638792,-1504.38958161,0.00023998,2]
[314152645,1708026638801,-1504.38958161,0.00023998,2]
[314152647,1708026638810,-1504.38958161,0.00023998,2]
[314152649,1708026638819,-1504.38958161,0.00023998,2]
[314152651,1708026638829,-1504.38958161,0.00023998,2]
[314152653,1708026638838,-1504.38958161,0.00023998,2]
[314152654,1708026638847,-1504.38958161,0.00023998,2]
[314152656,1708026638856,-1504.38958161,0.00023998,2]
[314152657,1708026638865,-1504.38958161,0.00023998,2]
[314152659,1708026638877,-1504.38958161,0.00023998,2]
[314152661,1708026638887,-1504.38958161,0.00023998,2]
[314152663,1708026638896,-1504.38958161,0.00023998,2]
[314152665,1708026638905,-1504.38958161,0.00023998,2]
[314152667,1708026638914,-1504.38958161,0.00023998,2]
[314152669,1708026638923,-1504.38958161,0.00023998,2]
[314152671,1708026638932,-1504.38958161,0.00023998,2]
[314152673,1708026638942,-1504.38958161,0.00023998,2]
[314152675,1708026638951,-1504.38958161,0.00023998,2]
[314152685,1708026639029,-1504.38958161,0.00023998,2]
[314152687,1708026639038,-1504.38958161,0.00023998,2]
[314152689,1708026639047,-1504.38958161,0.00023998,2]
[314152691,1708026639056,-1504.38958161,0.00023998,2]
[314152693,1708026639065,-1504.38958161,0.00023998,2]
[314152695,1708026639074,-1504.38958161,0.00023998,2]
[314152697,1708026639083,-1504.38958161,0.00023998,2]
[314152699,1708026639093,-1504.38958161,0.00023998,2]
[314152701,1708026639102,-1504.38958161,0.00023998,2]
[314152703,1708026639111,-500.0,0.00023999,2]
[314152705,1708026639120,-500.0,0.00023999,2]
[314152707,1708026639130,-197.33585836,0.00023999,2]
[314152709,1708026639140,-499.96128475,0.00023999,2]
[314152711,1708026639149,-500.0,0.00023999,2]
[314152713,1708026639158,-645.68833248,0.00023999,2]
[314152715,1708026639168,-500.0,0.00023999,2]
[314152717,1708026639177,-500.0,0.00023999,2]
[314152719,1708026639186,-500.0,0.00023999,2]
[314152721,1708026639196,-500.0,0.00023999,2]
[314152722,1708026639206,-327.75875897,0.00023999,2]
[314152723,1708026639215,-613.25507072,0.00023999,2]
[314152724,1708026639226,-500.0,0.00023999,2]
[314152725,1708026639235,-500.0,0.00023999,2]
[314152726,1708026639244,-500.0,0.00023999,2]
[314152727,1708026639253,-500.0,0.00023999,2]
[314152728,1708026639263,-500.0,0.00023999,2]
[314152729,1708026639273,-500.0,0.00023999,2]
[314152730,1708026639283,-500.0,0.00023999,2]
[314152731,1708026639293,-500.0,0.00023999,2]
[314152732,1708026639302,-500.0,0.00023999,2]
[314152733,1708026639311,-500.0,0.00023999,2]
[314152734,1708026639321,-645.02117502,0.00023999,2]
[314152735,1708026639331,-500.0,0.00023999,2]
[314152736,1708026639341,-500.0,0.00023999,2]
[314152737,1708026639350,-500.0,0.00023999,2]
[314152738,1708026639359,-498.0,0.00023999,2]
[314152739,1708026639368,-500.0,0.00023999,2]
[314152740,1708026639377,-500.0,0.00023999,2]
[314152741,1708026639387,-320.0,0.00023999,2]
[314152742,1708026639396,-1424.20771006,0.00024,3]
[314152743,1708026639406,-792.31320463,0.00024,2]
[314152744,1708026639414,-776366.17724315,0.00024,2]
[314152773,1708026641248,-2714.96038095,0.0002399,3]
[314152775,1708026641260,-3190.03295863,0.0002399,3]
[314152778,1708026641273,-3826.43666042,0.0002399,3]
[314152780,1708026641282,-3662.73678966,0.00024,2]
[314152786,1708026641327,-2006.01250948,0.00024,2]
[314152872,1708026643028,-420.66808173,0.00024,2]
[314152953,1708026646043,-664.16267637,0.00024,2]
[314152955,1708026646055,-4720.0,0.00024,2]
[314153135,1708027832407,-403.83941737,0.00021358,2]
[314153138,1708027832417,-169.725628,0.00021359,2]
[314153141,1708027832426,-476.09,0.000219,2]
[314153144,1708027832435,-1307.00407628,0.000219,2]
[314153146,1708027832447,-559.24362445,0.000219,2]
[314153148,1708027832456,-256.22157654,0.00022,2]
[314153150,1708027832465,-1328.52337422,0.00022069,2]
[314153276,1708027838206,-23571.47662578,0.00022069,2]
[314153278,1708027838216,-847.428022,0.00022285,2]
[314153280,1708027838225,-200.0,0.0002251,7]
[314153282,1708027838234,-200.0,0.0002251,7]
[314153284,1708027838244,-169.080987,0.00022723,2]
[314153287,1708027838254,-11161.85,0.00023577,3]
[314153288,1708027838264,-10140.09631163,0.00023586,2]
[314153291,1708027838274,-50000.0,0.00023587,2]
[314153293,1708027838284,-50000.0,0.00023854,2]
[314153295,1708027838294,-151.60247961,0.00023872,2]
[314153297,1708027838303,-250.0,0.00023996,2]
[314153298,1708027838313,-217.58507873,0.00023996,2]
[314153300,1708027838322,-1504.38958161,0.00023996,2]
[314153303,1708027838331,-313.77188413,0.00023996,2]
[314153316,1708027838427,-1504.38958161,0.00023996,2]
[314153318,1708027838438,-1504.38958161,0.00023996,2]
[314153320,1708027838447,-1504.38958161,0.00023996,2]
[314153322,1708027838457,-1504.38958161,0.00023996,2]
[314153324,1708027838467,-1504.38958161,0.00023996,2]
[314153326,1708027838476,-1504.38958161,0.00023996,2]
[314153328,1708027838486,-1504.38958161,0.00023996,2]
[314153330,1708027838495,-1504.38958161,0.00023996,2]
[314153332,1708027838504,-1504.38958161,0.00023996,2]
[314153334,1708027838513,-1504.38958161,0.00023996,2]
[314153336,1708027838522,-1504.38958161,0.00023996,2]
[314153338,1708027838532,-1504.38958161,0.00023996,2]
[314153340,1708027838541,-1504.38958161,0.00023996,2]
[314153341,1708027838551,-1504.38958161,0.00023996,2]
[314153343,1708027838560,-1504.38958161,0.00023996,2]
[314153345,1708027838569,-1504.38958161,0.00023996,2]
[314153347,1708027838578,-1504.38958161,0.00023996,2]
[314153349,1708027838587,-1504.38958161,0.00023996,2]
[314153351,1708027838597,-1504.38958161,0.00023996,2]
[314153353,1708027838606,-1504.38958161,0.00023996,2]
[314153355,1708027838615,-1504.38958161,0.00023996,2]
[314153357,1708027838624,-1504.38958161,0.00023996,2]
[314153359,1708027838633,-1504.38958161,0.00023996,2]
[314153361,1708027838642,-1504.38958161,0.00023996,2]
[314153363,1708027838651,-1504.38958161,0.00023996,2]
[314153365,1708027838660,-1504.38958161,0.00023996,2]
[314153367,1708027838669,-1504.38958161,0.00023996,2]
[314153369,1708027838678,-1504.38958161,0.00023996,2]
[314153371,1708027838687,-1504.38958161,0.00023996,2]
[314153373,1708027838696,-1504.38958161,0.00023996,2]
[314153375,1708027838704,-1504.38958161,0.00023996,2]
[314153377,1708027838715,-1504.38958161,0.00023996,2]
[314153379,1708027838724,-1504.38958161,0.00023996,2]
[314153381,1708027838733,-1504.38958161,0.00023996,2]
[314153383,1708027838742,-1504.38958161,0.00023996,2]
[314153385,1708027838752,-1504.38958161,0.00023996,2]
[314153387,1708027838762,-1504.38958161,0.00023996,2]
[314153389,1708027838774,-1504.38958161,0.00023996,2]
[314153391,1708027838783,-1504.38958161,0.00023996,2]
[314153393,1708027838792,-1504.38958161,0.00023996,2]
[314153395,1708027838803,-1504.38958161,0.00023996,2]
[314153397,1708027838814,-1504.38958161,0.00023996,2]
[314153399,1708027838823,-1504.38958161,0.00023996,2]
[314153401,1708027838833,-1504.38958161,0.00023996,2]
[314153403,1708027838843,-1504.38958161,0.00023996,2]
[314153405,1708027838853,-1504.38958161,0.00023996,2]
[314153407,1708027838862,-1504.38958161,0.00023996,2]
[314153409,1708027838871,-1504.38958161,0.00023996,2]
[314153411,1708027838880,-1504.38958161,0.00023996,2]
[314153413,1708027838889,-1504.38958161,0.00023996,2]
[314153415,1708027838898,-1504.38958161,0.00023996,2]
[314153417,1708027838907,-1504.38958161,0.00023996,2]
[314153419,1708027838916,-1504.38958161,0.00023996,2]
[314153421,1708027838925,-1504.38958161,0.00023996,2]
[314153423,1708027838934,-1504.38958161,0.00023996,2]
[314153425,1708027838943,-1504.38958161,0.00023996,2]
[314153427,1708027838952,-1504.38958161,0.00023996,2]
[314153429,1708027838961,-1504.38958161,0.00023996,2]
[314153430,1708027838971,-1283.93125695,0.00023999,2]
[314153432,1708027838980,-500.0,0.00023999,2]
[314153434,1708027838990,-500.0,0.00023999,2]
[314153436,1708027838999,-499.96128475,0.00023999,2]
[314153438,1708027839009,-500.0,0.00023999,2]
[314153440,1708027839018,-197.33585836,0.00023999,2]
[314153442,1708027839027,-645.68833248,0.00023999,2]
[314153444,1708027839036,-500.0,0.00023999,2]
[314153446,1708027839045,-500.0,0.00023999,2]
[314153448,1708027839054,-327.75875897,0.00023999,2]
[314153450,1708027839063,-500.0,0.00023999,2]
[314153452,1708027839073,-500.0,0.00023999,2]
[314153454,1708027839082,-500.0,0.00023999,2]
[314153456,1708027839091,-500.0,0.00023999,2]
[314153458,1708027839100,-500.0,0.00023999,2]
[314153460,1708027839110,-500.0,0.00023999,2]
[314153462,1708027839119,-500.0,0.00023999,2]
[314153464,1708027839128,-500.0,0.00023999,2]
[314153466,1708027839137,-500.0,0.00023999,2]
[314153468,1708027839147,-500.0,0.00023999,2]
[314153470,1708027839156,-500.0,0.00023999,2]
[314153472,1708027839165,-500.0,0.00023999,2]
[314153474,1708027839174,-500.0,0.00023999,2]
[314153476,1708027839183,-500.0,0.00023999,2]
[314153478,1708027839192,-500.0,0.00023999,2]
[314153480,1708027839202,-500.0,0.00023999,2]
[314153482,1708027839211,-533.25507072,0.00023999,2]
[314153484,1708027839220,-500.0,0.00023999,2]
[314153486,1708027839229,-500.0,0.00023999,2]
[314153487,1708027839239,-500.0,0.00023999,2]
[314153489,1708027839249,-493.02117502,0.00023999,2]
[314153491,1708027839258,-500.0,0.00023999,2]
[314153494,1708027839270,-550.0,0.00023999,2]
[314153495,1708027839280,-1424.20771006,0.00024,3]
[314153498,1708027839290,-651369.48796412,0.00024,2]
[314153711,1708027841512,-26000.0,0.00024,2]
[314153898,1708027843280,-9301.54,0.0002399,3]
[314153900,1708027843289,-966.70621962,0.00024,2]
[314153903,1708027843301,-6711.39485854,0.00024,2]
[314154868,1708029032418,-5282.99017836,0.00021899,2]
[314154870,1708029032429,-1342.5875167,0.000219,2]
[314154872,1708029032438,-24900.0,0.00021943,2]
[314154874,1708029032448,-169.725628,0.00022068,2]
[314154876,1708029032458,-423.714011,0.0002211,2]
[314154878,1708029032467,-716.88940302,0.0002325,2]
[314154880,1708029032476,-200.0,0.0002335,7]
[314154882,1708029032486,-200.0,0.0002335,7]
[314154884,1708029032495,-91201.56673515,0.00024,2]
[314154957,1708029039689,-28171.97305414,0.00024,2]
[314154958,1708029039700,-166.851627,0.00024658,2]
[314154959,1708029039710,-9716.67,0.00024887,3]
[314154960,1708029039719,-250.0,0.00024894,2]
[314154961,1708029039729,-621.79972846,0.00024896,2]
[314154962,1708029039738,-621.79972846,0.00024896,2]
[314154963,1708029039748,-621.79972846,0.00024896,2]
[314154964,1708029039758,-621.79972846,0.00024896,2]
[314154965,1708029039768,-621.79972846,0.00024896,2]
[314154966,1708029039778,-621.79972846,0.00024896,2]
[314154967,1708029039789,-621.79972846,0.00024896,2]
[314154968,1708029039799,-621.79972846,0.00024896,2]
[314154969,1708029039809,-621.79972846,0.00024896,2]
[314154970,1708029039819,-621.79972846,0.00024896,2]
[314154971,1708029039830,-621.79972846,0.00024896,2]
[314154972,1708029039840,-621.79972846,0.00024896,2]
[314154974,1708029039850,-621.79972846,0.00024896,2]
[314154975,1708029039860,-621.79972846,0.00024896,2]
[314154976,1708029039870,-621.79972846,0.00024896,2]
[314154977,1708029039879,-621.79972846,0.00024896,2]